[Event "Titled Tuesday Blitz June 6 Early 2023"]
[White "Redzisz, Michal"]
[Black "Ashraf, Artin"]
[WhiteFideId "21816107"]
[BlackFideId "22514805"]
[WhiteElo "2175"]
[BlackElo "2224"]
[Result "1-0"]
[Round "11"]
[TimeControl "180+2"]
[Date "2023.06.06"]
[WhiteClock "0:01:28"]
[BlackClock "0:00:05"]
[Board "38"]

1. e4 {[%clk 0:03:00]}  c5 {[%clk 0:02:21]} 2. Nf3 {[%clk 0:03:00]}  d6 {[%clk 0:02:21]} 3. d4 {[%clk 0:03:00]}  cxd4 {[%clk 0:02:22]} 4. Qxd4 {[%clk 0:02:57]}  Nc6 {[%clk 0:02:17]} 5. Bb5 {[%clk 0:02:58]}  Bd7 {[%clk 0:02:07]} 6. Qd3 {[%clk 0:02:58]}  Nf6 {[%clk 0:02:07]} 7. Nc3 {[%clk 0:02:58]}  a6 {[%clk 0:02:03]} 8. Bxc6 {[%clk 0:02:58]}  Bxc6 {[%clk 0:02:03]} 9. Bg5 {[%clk 0:02:58]}  e6 {[%clk 0:01:57]} 10. O-O-O {[%clk 0:02:55]}  Be7 {[%clk 0:01:55]} 11. Bxf6 {[%clk 0:02:38]}  Bxf6 {[%clk 0:01:41]} 12. Rhe1 {[%clk 0:02:38]}  Be7 {[%clk 0:01:31]} 13. Nd4 {[%clk 0:02:35]}  O-O {[%clk 0:01:20]} 14. f4 {[%clk 0:02:35]}  Rc8 {[%clk 0:01:13]} 15. Kb1 {[%clk 0:02:35]}  Qa5 {[%clk 0:01:04]} 16. f5 {[%clk 0:02:28]}  Bd7 {[%clk 0:00:58]} 17. e5 {[%clk 0:02:09]}  d5 {[%clk 0:00:27]} 18. Rf1 {[%clk 0:02:03]}  Bb4 {[%clk 0:00:22]} 19. Nce2 {[%clk 0:01:55]}  Rfe8 {[%clk 0:00:09]} 20. f6 {[%clk 0:01:54]}  g6 {[%clk 0:00:09]} 21. Qe3 {[%clk 0:01:49]}  Bf8 {[%clk 0:00:07]} 22. h4 {[%clk 0:01:42]}  Rc4 {[%clk 0:00:04]} 23. h5 {[%clk 0:01:42]}  g5 {[%clk 0:00:04]} 24. Qxg5+ {[%clk 0:01:41]}  Kh8 {[%clk 0:00:05]} 25. Rf3 {[%clk 0:01:29]}  Rec8 {[%clk 0:00:05]} 26. Rg3 {[%clk 0:01:28]} 1-0


[Site "https://www.chess.com"]

[Event "Titled Tuesday Blitz June 6 Early 2023"]
[White "kuanysh1981"]
[Black "Veiga, Jose Francisco R P Neves"]
[BlackFideId "1930087"]
[WhiteElo "2480"]
[BlackElo "2319"]
[Result "1-0"]
[Round "11"]
[TimeControl "180+2"]
[Date "2023.06.06"]
[WhiteClock "0:01:48"]
[BlackClock "0:00:36"]
[Board "39"]

1. d4 {[%clk 0:03:00]}  Nf6 {[%clk 0:02:59]} 2. Nf3 {[%clk 0:03:00]}  e6 {[%clk 0:02:59]} 3. g3 {[%clk 0:03:00]}  c5 {[%clk 0:02:59]} 4. Bg2 {[%clk 0:03:01]}  Nc6 {[%clk 0:02:59]} 5. O-O {[%clk 0:03:01]}  Be7 {[%clk 0:02:59]} 6. c4 {[%clk 0:03:01]}  cxd4 {[%clk 0:02:59]} 7. Nxd4 {[%clk 0:03:02]}  O-O {[%clk 0:02:59]} 8. Nc3 {[%clk 0:03:02]}  a6 {[%clk 0:02:59]} 9. b3 {[%clk 0:03:01]}  Qc7 {[%clk 0:02:57]} 10. Bb2 {[%clk 0:03:01]}  d6 {[%clk 0:02:57]} 11. Rc1 {[%clk 0:03:01]}  Bd7 {[%clk 0:02:58]} 12. Nd5 {[%clk 0:03:01]}  Qd8 {[%clk 0:02:54]} 13. Nxe7+ {[%clk 0:02:58]}  Qxe7 {[%clk 0:02:55]} 14. Ba3 {[%clk 0:02:55]}  Rfd8 {[%clk 0:02:53]} 15. Qd2 {[%clk 0:02:52]}  Rac8 {[%clk 0:02:51]} 16. Rfd1 {[%clk 0:02:52]}  Ne8 {[%clk 0:02:49]} 17. Nc2 {[%clk 0:02:42]}  b5 {[%clk 0:02:41]} 18. cxb5 {[%clk 0:02:39]}  axb5 {[%clk 0:02:42]} 19. Nb4 {[%clk 0:02:37]}  Ne5 {[%clk 0:01:47]} 20. f4 {[%clk 0:02:37]}  Ng6 {[%clk 0:01:41]} 21. Bb2 {[%clk 0:02:24]}  d5 {[%clk 0:01:40]} 22. Nd3 {[%clk 0:02:15]}  Ra8 {[%clk 0:01:31]} 23. Bd4 {[%clk 0:02:12]}  Rdc8 {[%clk 0:01:28]} 24. Rxc8 {[%clk 0:02:10]}  Rxc8 {[%clk 0:01:26]} 25. Rc1 {[%clk 0:02:10]}  Qa3 {[%clk 0:01:16]} 26. Rxc8 {[%clk 0:02:08]}  Bxc8 {[%clk 0:01:17]} 27. Qc2 {[%clk 0:02:08]}  Bd7 {[%clk 0:01:17]} 28. Nc5 {[%clk 0:02:05]}  Bc8 {[%clk 0:01:06]} 29. Na4 {[%clk 0:01:58]}  Bb7 {[%clk 0:00:41]} 30. Bc5 {[%clk 0:01:53]}  b4 {[%clk 0:00:41]} 31. Be3 {[%clk 0:01:48]}  h5 {[%clk 0:00:36]} 32. Bc1 {[%clk 0:01:48]} 1-0


[Site "https://www.chess.com"]

[Event "Titled Tuesday Blitz June 6 Early 2023"]
[White "Tomaszewski, Kacper"]
[Black "Belov, Alexei"]
[WhiteFideId "1127373"]
[BlackFideId "4128206"]
[WhiteElo "2211"]
[BlackElo "2634"]
[Result "0-1"]
[Round "11"]
[TimeControl "180+2"]
[Date "2023.06.06"]
[WhiteClock "0:00:09"]
[BlackClock "0:00:20"]
[Board "40"]

1. d4 {[%clk 0:03:00]}  e6 {[%clk 0:02:59]} 2. c4 {[%clk 0:03:01]}  d5 {[%clk 0:02:59]} 3. Nc3 {[%clk 0:03:01]}  Be7 {[%clk 0:03:00]} 4. Bf4 {[%clk 0:02:55]}  Nf6 {[%clk 0:02:59]} 5. e3 {[%clk 0:02:56]}  O-O {[%clk 0:02:59]} 6. a3 {[%clk 0:02:56]}  Nbd7 {[%clk 0:02:59]} 7. Nf3 {[%clk 0:02:52]}  a6 {[%clk 0:02:57]} 8. c5 {[%clk 0:02:46]}  c6 {[%clk 0:02:55]} 9. b4 {[%clk 0:02:43]}  Ne4 {[%clk 0:02:51]} 10. Qc2 {[%clk 0:02:39]}  f5 {[%clk 0:02:41]} 11. Bd3 {[%clk 0:02:29]}  g5 {[%clk 0:02:36]} 12. Bg3 {[%clk 0:02:28]}  Nxc3 {[%clk 0:02:20]} 13. Qxc3 {[%clk 0:02:24]}  f4 {[%clk 0:02:20]} 14. Qc2 {[%clk 0:02:12]}  h6 {[%clk 0:02:14]} 15. Bh7+ {[%clk 0:02:09]}  Kh8 {[%clk 0:02:13]} 16. h4 {[%clk 0:02:00]}  fxg3 {[%clk 0:02:00]} 17. hxg5 {[%clk 0:01:58]}  gxf2+ {[%clk 0:02:00]} 18. Kxf2 {[%clk 0:01:49]}  Bxg5 {[%clk 0:02:00]} 19. Rh5 {[%clk 0:01:25]}  e5 {[%clk 0:01:25]} 20. dxe5 {[%clk 0:01:14]}  Nxe5 {[%clk 0:01:18]} 21. Rah1 {[%clk 0:01:13]}  Qf6 {[%clk 0:00:51]} 22. Ke1 {[%clk 0:00:50]}  Nxf3+ {[%clk 0:00:49]} 23. gxf3 {[%clk 0:00:51]}  Bxe3 {[%clk 0:00:30]} 24. Bd3 {[%clk 0:00:32]}  Bg5 {[%clk 0:00:27]} 25. Be2 {[%clk 0:00:26]}  Bf5 {[%clk 0:00:26]} 26. Qd1 {[%clk 0:00:21]}  Rae8 {[%clk 0:00:25]} 27. Kf1 {[%clk 0:00:19]}  Bg6 {[%clk 0:00:23]} 28. Rxh6+ {[%clk 0:00:19]}  Bxh6 {[%clk 0:00:22]} 29. Rxh6+ {[%clk 0:00:20]}  Kg7 {[%clk 0:00:23]} 30. Rh2 {[%clk 0:00:20]}  Rh8 {[%clk 0:00:23]} 31. Rg2 {[%clk 0:00:20]}  Kf7 {[%clk 0:00:22]} 32. Qd2 {[%clk 0:00:15]}  Bf5 {[%clk 0:00:20]} 33. Qf4 {[%clk 0:00:11]}  Bh3 {[%clk 0:00:19]} 34. Qc7+ {[%clk 0:00:09]}  Re7 {[%clk 0:00:20]} 0-1


[Site "https://www.chess.com"]

[Event "Titled Tuesday Blitz June 6 Early 2023"]
[White "Toncheva, Nadya"]
[Black "Fiorito, Joaquin"]
[WhiteFideId "2924056"]
[BlackFideId "180173"]
[WhiteElo "2101"]
[BlackElo "2199"]
[Result "0-1"]
[Round "11"]
[TimeControl "180+2"]
[Date "2023.06.06"]
[WhiteClock "0:00:02"]
[BlackClock "0:00:08"]
[Board "41"]

1. e4 {[%clk 0:03:00]}  c6 {[%clk 0:02:59]} 2. d4 {[%clk 0:03:00]}  d5 {[%clk 0:02:59]} 3. Nc3 {[%clk 0:03:01]}  dxe4 {[%clk 0:02:59]} 4. Nxe4 {[%clk 0:03:02]}  Nf6 {[%clk 0:03:00]} 5. Nxf6+ {[%clk 0:03:02]}  exf6 {[%clk 0:03:01]} 6. c3 {[%clk 0:03:03]}  Bd6 {[%clk 0:03:02]} 7. Bd3 {[%clk 0:03:04]}  O-O {[%clk 0:03:02]} 8. Ne2 {[%clk 0:03:04]}  Re8 {[%clk 0:03:02]} 9. O-O {[%clk 0:03:05]}  Nd7 {[%clk 0:03:03]} 10. Ng3 {[%clk 0:03:04]}  Nf8 {[%clk 0:03:00]} 11. f4 {[%clk 0:03:05]}  Qc7 {[%clk 0:02:52]} 12. f5 {[%clk 0:03:04]}  Bxg3 {[%clk 0:02:47]} 13. hxg3 {[%clk 0:03:05]}  Qxg3 {[%clk 0:02:45]} 14. Bf4 {[%clk 0:03:05]}  Qh4 {[%clk 0:02:41]} 15. Rf3 {[%clk 0:03:04]}  Bd7 {[%clk 0:01:35]} 16. Qf1 {[%clk 0:03:03]}  g5 {[%clk 0:01:26]} 17. fxg6 {[%clk 0:02:52]}  hxg6 {[%clk 0:01:19]} 18. Bd6 {[%clk 0:02:34]}  Kg7 {[%clk 0:01:14]} 19. Be5 {[%clk 0:02:12]}  Nh7 {[%clk 0:01:09]} 20. Bc4 {[%clk 0:01:16]}  Bg4 {[%clk 0:00:53]} 21. Rf4 {[%clk 0:01:10]}  Qg5 {[%clk 0:00:20]} 22. Bd6 {[%clk 0:00:46]}  Be6 {[%clk 0:00:18]} 23. Bd3 {[%clk 0:00:35]}  Rad8 {[%clk 0:00:18]} 24. Ba3 {[%clk 0:00:31]}  f5 {[%clk 0:00:16]} 25. b3 {[%clk 0:00:29]}  Nf6 {[%clk 0:00:16]} 26. Bb2 {[%clk 0:00:29]}  Nd5 {[%clk 0:00:16]} 27. Rf2 {[%clk 0:00:27]}  Ne3 {[%clk 0:00:16]} 28. Qc1 {[%clk 0:00:18]}  f4 {[%clk 0:00:16]} 29. c4 {[%clk 0:00:17]}  f6 {[%clk 0:00:16]} 30. Bc3 {[%clk 0:00:15]}  Rh8 {[%clk 0:00:15]} 31. d5 {[%clk 0:00:08]}  Qh4 {[%clk 0:00:13]} 32. Bxf6+ {[%clk 0:00:07]}  Kxf6 {[%clk 0:00:11]} 33. Qc3+ {[%clk 0:00:05]}  Ke7 {[%clk 0:00:08]} 34. Rf3 {[%clk 0:00:03]}  Qh1+ {[%clk 0:00:08]} 35. Kf2 {[%clk 0:00:04]}  Qxg2+ {[%clk 0:00:09]} 36. Ke1 {[%clk 0:00:04]}  Rh1+ {[%clk 0:00:09]} 37. Rf1 {[%clk 0:00:03]}  Rxf1+ {[%clk 0:00:09]} 38. Bxf1 {[%clk 0:00:03]}  Qxf1+ {[%clk 0:00:10]} 39. Kd2 {[%clk 0:00:04]}  Qf2+ {[%clk 0:00:10]} 40. Kc1 {[%clk 0:00:02]}  cxd5 {[%clk 0:00:08]} 41. Qg7+ {[%clk 0:00:03]}  Kd6 {[%clk 0:00:08]} 42. Qf6 {[%clk 0:00:02]}  Qc2# {[%clk 0:00:08]} 0-1


[Site "https://www.chess.com"]

[Event "Titled Tuesday Blitz June 6 Early 2023"]
[White "Hua, Lefong"]
[Black "Yeritsyan, Hayk"]
[WhiteFideId "2602253"]
[BlackFideId "13307320"]
[WhiteElo "2632"]
[BlackElo "2468"]
[Result "1-0"]
[Round "11"]
[TimeControl "180+2"]
[Date "2023.06.06"]
[WhiteClock "0:00:45"]
[BlackClock "0:00:09"]
[Board "43"]

1. d4 {[%clk 0:03:00]}  Nf6 {[%clk 0:02:59]} 2. c4 {[%clk 0:03:01]}  e6 {[%clk 0:03:00]} 3. Nc3 {[%clk 0:03:01]}  d5 {[%clk 0:02:59]} 4. cxd5 {[%clk 0:03:01]}  exd5 {[%clk 0:02:59]} 5. Bg5 {[%clk 0:03:01]}  c6 {[%clk 0:02:59]} 6. e3 {[%clk 0:03:02]}  Be7 {[%clk 0:02:57]} 7. Bd3 {[%clk 0:03:02]}  O-O {[%clk 0:02:55]} 8. Qc2 {[%clk 0:03:02]}  Nbd7 {[%clk 0:02:54]} 9. Nge2 {[%clk 0:03:03]}  Re8 {[%clk 0:02:51]} 10. O-O {[%clk 0:03:02]}  h6 {[%clk 0:02:48]} 11. Bh4 {[%clk 0:03:02]}  Nf8 {[%clk 0:02:46]} 12. f3 {[%clk 0:03:01]}  Nh5 {[%clk 0:02:39]} 13. Bf2 {[%clk 0:03:00]}  Bg5 {[%clk 0:02:39]} 14. e4 {[%clk 0:02:56]}  Nf4 {[%clk 0:02:38]} 15. Nxf4 {[%clk 0:02:52]}  Bxf4 {[%clk 0:02:39]} 16. e5 {[%clk 0:02:50]}  Bg5 {[%clk 0:02:19]} 17. g3 {[%clk 0:02:44]}  Bh3 {[%clk 0:02:18]} 18. Rfe1 {[%clk 0:02:41]}  Qd7 {[%clk 0:02:18]} 19. f4 {[%clk 0:02:40]}  Bd8 {[%clk 0:02:14]} 20. f5 {[%clk 0:02:12]}  Bb6 {[%clk 0:02:02]} 21. Ne2 {[%clk 0:02:10]}  Nh7 {[%clk 0:01:45]} 22. Nf4 {[%clk 0:01:59]}  Ng5 {[%clk 0:01:45]} 23. Nxh3 {[%clk 0:01:42]}  Nxh3+ {[%clk 0:01:42]} 24. Kg2 {[%clk 0:01:42]}  Nxf2 {[%clk 0:01:42]} 25. Qxf2 {[%clk 0:01:42]}  Rac8 {[%clk 0:01:35]} 26. Qf4 {[%clk 0:01:28]}  c5 {[%clk 0:01:29]} 27. dxc5 {[%clk 0:01:21]}  Bxc5 {[%clk 0:01:27]} 28. f6 {[%clk 0:01:18]}  g5 {[%clk 0:01:22]} 29. Qf3 {[%clk 0:01:14]}  Bd4 {[%clk 0:01:13]} 30. Qh5 {[%clk 0:00:57]}  Bxe5 {[%clk 0:00:20]} 31. Rxe5 {[%clk 0:00:50]}  Rxe5 {[%clk 0:00:21]} 32. Qxh6 {[%clk 0:00:50]}  Rc2+ {[%clk 0:00:17]} 33. Bxc2 {[%clk 0:00:47]}  Re2+ {[%clk 0:00:17]} 34. Kg1 {[%clk 0:00:46]}  Qd6 {[%clk 0:00:09]} 35. Qg7# {[%clk 0:00:45]} 1-0


[Site "https://www.chess.com"]

[Event "Titled Tuesday Blitz June 6 Early 2023"]
[White "Gabdushev, Ruslan"]
[Black "Lee, Qing Aun"]
[WhiteFideId "4137833"]
[BlackFideId "5804167"]
[WhiteElo "2233"]
[BlackElo "2179"]
[Result "1-0"]
[Round "11"]
[TimeControl "180+2"]
[Date "2023.06.06"]
[WhiteClock "0:00:32"]
[BlackClock "0:00:10"]
[Board "44"]

1. b3 {[%clk 0:03:00]}  d5 {[%clk 0:02:58]} 2. Bb2 {[%clk 0:03:00]}  c5 {[%clk 0:02:58]} 3. e3 {[%clk 0:02:59]}  a6 {[%clk 0:02:57]} 4. f4 {[%clk 0:02:56]}  Nc6 {[%clk 0:02:57]} 5. Nf3 {[%clk 0:02:56]}  Nf6 {[%clk 0:02:53]} 6. Be2 {[%clk 0:02:55]}  e6 {[%clk 0:02:53]} 7. O-O {[%clk 0:02:55]}  Bd6 {[%clk 0:02:52]} 8. Ne5 {[%clk 0:02:53]}  Qc7 {[%clk 0:02:51]} 9. Nxc6 {[%clk 0:02:52]}  Qxc6 {[%clk 0:02:50]} 10. d3 {[%clk 0:02:51]}  b5 {[%clk 0:02:49]} 11. Bf3 {[%clk 0:02:48]}  Bb7 {[%clk 0:02:48]} 12. c4 {[%clk 0:02:45]}  Qc7 {[%clk 0:02:43]} 13. Nc3 {[%clk 0:02:41]}  b4 {[%clk 0:02:38]} 14. Na4 {[%clk 0:02:38]}  dxc4 {[%clk 0:02:23]} 15. Bxb7 {[%clk 0:02:28]}  Qxb7 {[%clk 0:02:23]} 16. dxc4 {[%clk 0:02:26]}  Ne4 {[%clk 0:02:20]} 17. f5 {[%clk 0:02:15]}  O-O-O {[%clk 0:02:16]} 18. Qg4 {[%clk 0:02:08]}  e5 {[%clk 0:01:59]} 19. f6+ {[%clk 0:02:00]}  Kb8 {[%clk 0:01:58]} 20. fxg7 {[%clk 0:01:59]}  Rhg8 {[%clk 0:01:58]} 21. Rad1 {[%clk 0:01:52]}  h5 {[%clk 0:01:39]} 22. Qf3 {[%clk 0:01:40]}  Rxg7 {[%clk 0:01:34]} 23. Rd5 {[%clk 0:01:39]}  Ng5 {[%clk 0:01:33]} 24. Qf6 {[%clk 0:01:31]}  Ne6 {[%clk 0:01:14]} 25. Bxe5 {[%clk 0:01:25]}  Bxe5 {[%clk 0:01:07]} 26. Qxe5+ {[%clk 0:01:06]}  Ka7 {[%clk 0:01:03]} 27. Nxc5 {[%clk 0:00:44]}  Rxg2+ {[%clk 0:00:10]} 28. Kxg2 {[%clk 0:00:41]}  Nxc5 {[%clk 0:00:10]} 29. Qd4 {[%clk 0:00:32]} 1-0


[Site "https://www.chess.com"]

[Event "Titled Tuesday Blitz June 6 Early 2023"]
[White "Martin, Lewis"]
[Black "Terletsky, Oleg"]
[WhiteFideId "410551"]
[BlackFideId "14116774"]
[WhiteElo "2145"]
[BlackElo "2126"]
[Result "0-1"]
[Round "11"]
[TimeControl "180+2"]
[Date "2023.06.06"]
[WhiteClock "0:00:17"]
[BlackClock "0:00:12"]
[Board "48"]

1. e4 {[%clk 0:03:00]}  e5 {[%clk 0:02:58]} 2. Nf3 {[%clk 0:03:01]}  Nc6 {[%clk 0:02:58]} 3. Bb5 {[%clk 0:03:01]}  a6 {[%clk 0:02:58]} 4. Ba4 {[%clk 0:03:01]}  Nf6 {[%clk 0:02:59]} 5. O-O {[%clk 0:03:01]}  Be7 {[%clk 0:02:57]} 6. Re1 {[%clk 0:03:01]}  b5 {[%clk 0:02:57]} 7. Bb3 {[%clk 0:03:01]}  d6 {[%clk 0:02:58]} 8. a4 {[%clk 0:03:00]}  Bg4 {[%clk 0:02:56]} 9. c3 {[%clk 0:02:58]}  Rb8 {[%clk 0:02:44]} 10. axb5 {[%clk 0:02:57]}  axb5 {[%clk 0:02:44]} 11. h3 {[%clk 0:02:56]}  Be6 {[%clk 0:02:32]} 12. d4 {[%clk 0:02:53]}  Bxb3 {[%clk 0:02:06]} 13. Qxb3 {[%clk 0:02:54]}  Qd7 {[%clk 0:02:07]} 14. Be3 {[%clk 0:02:31]}  Nxe4 {[%clk 0:01:53]} 15. dxe5 {[%clk 0:02:17]}  dxe5 {[%clk 0:01:44]} 16. c4 {[%clk 0:01:46]}  b4 {[%clk 0:01:33]} 17. Nbd2 {[%clk 0:01:27]}  Nxd2 {[%clk 0:01:31]} 18. Bxd2 {[%clk 0:01:27]}  O-O {[%clk 0:01:27]} 19. Rad1 {[%clk 0:01:24]}  Qf5 {[%clk 0:01:20]} 20. Qa4 {[%clk 0:01:12]}  Qg6 {[%clk 0:00:47]} 21. Nxe5 {[%clk 0:01:06]}  Nxe5 {[%clk 0:00:47]} 22. Rxe5 {[%clk 0:01:06]}  Bf6 {[%clk 0:00:48]} 23. Rb5 {[%clk 0:00:59]}  Rbd8 {[%clk 0:00:26]} 24. Bxb4 {[%clk 0:00:55]}  Rxd1+ {[%clk 0:00:20]} 25. Qxd1 {[%clk 0:00:56]}  Re8 {[%clk 0:00:18]} 26. Rd5 {[%clk 0:00:44]}  h6 {[%clk 0:00:17]} 27. b3 {[%clk 0:00:39]}  Re4 {[%clk 0:00:13]} 28. Rd3 {[%clk 0:00:34]}  Qf5 {[%clk 0:00:12]} 29. Rf3 {[%clk 0:00:33]}  Qe6 {[%clk 0:00:13]} 30. Qd5 {[%clk 0:00:20]}  Qxd5 {[%clk 0:00:12]} 31. cxd5 {[%clk 0:00:20]}  Rxb4 {[%clk 0:00:12]} 32. Rd3 {[%clk 0:00:18]}  Rd4 {[%clk 0:00:12]} 33. Rc3 {[%clk 0:00:17]}  Rd1+ {[%clk 0:00:12]} 0-1


[Site "https://www.chess.com"]

[Event "Titled Tuesday Blitz June 6 Early 2023"]
[White "Itgelt, Khuyagtsogt"]
[Black "Hajiyev, Kanan"]
[WhiteFideId "4902912"]
[BlackFideId "13404148"]
[WhiteElo "2227"]
[BlackElo "2115"]
[Result "1-0"]
[Round "11"]
[TimeControl "180+2"]
[Date "2023.06.06"]
[WhiteClock "0:00:27"]
[BlackClock "0:00:06"]
[Board "50"]

1. Nf3 {[%clk 0:03:00]}  b5 {[%clk 0:02:52]} 2. e4 {[%clk 0:02:59]}  b4 {[%clk 0:02:52]} 3. a3 {[%clk 0:02:56]}  bxa3 {[%clk 0:02:49]} 4. Nxa3 {[%clk 0:02:55]}  Bb7 {[%clk 0:02:50]} 5. Bc4 {[%clk 0:02:54]}  e6 {[%clk 0:02:37]} 6. Qe2 {[%clk 0:02:52]}  Nf6 {[%clk 0:02:36]} 7. d3 {[%clk 0:02:48]}  d5 {[%clk 0:02:21]} 8. exd5 {[%clk 0:02:46]}  Nxd5 {[%clk 0:02:18]} 9. O-O {[%clk 0:02:45]}  Bd6 {[%clk 0:02:15]} 10. Nb5 {[%clk 0:02:43]}  Be7 {[%clk 0:02:09]} 11. Re1 {[%clk 0:02:37]}  O-O {[%clk 0:02:01]} 12. Bd2 {[%clk 0:02:27]}  Bf6 {[%clk 0:01:59]} 13. c3 {[%clk 0:02:22]}  a6 {[%clk 0:01:47]} 14. Nbd4 {[%clk 0:02:22]}  c5 {[%clk 0:01:48]} 15. Nb3 {[%clk 0:02:20]}  Nd7 {[%clk 0:01:39]} 16. Na5 {[%clk 0:02:18]}  Qb6 {[%clk 0:01:35]} 17. Reb1 {[%clk 0:02:11]}  Rfb8 {[%clk 0:01:25]} 18. Nxb7 {[%clk 0:02:07]}  Qxb7 {[%clk 0:01:23]} 19. h3 {[%clk 0:01:57]}  a5 {[%clk 0:01:19]} 20. Ng5 {[%clk 0:01:38]}  Ne5 {[%clk 0:01:15]} 21. Ne4 {[%clk 0:01:35]}  Be7 {[%clk 0:00:58]} 22. Ra2 {[%clk 0:01:22]}  Nxc4 {[%clk 0:00:51]} 23. dxc4 {[%clk 0:01:23]}  Qb3 {[%clk 0:00:27]} 24. Rba1 {[%clk 0:01:08]}  Nb6 {[%clk 0:00:27]} 25. Bf4 {[%clk 0:01:05]}  Rc8 {[%clk 0:00:16]} 26. Nd2 {[%clk 0:00:49]}  Qc2 {[%clk 0:00:16]} 27. b4 {[%clk 0:00:49]}  axb4 {[%clk 0:00:15]} 28. Rxc2 {[%clk 0:00:44]}  Rxa1+ {[%clk 0:00:14]} 29. Kh2 {[%clk 0:00:45]}  Na4 {[%clk 0:00:04]} 30. cxb4 {[%clk 0:00:42]}  cxb4 {[%clk 0:00:05]} 31. Be5 {[%clk 0:00:41]}  Ra3 {[%clk 0:00:03]} 32. Qg4 {[%clk 0:00:40]}  Bf8 {[%clk 0:00:03]} 33. Ne4 {[%clk 0:00:39]}  b3 {[%clk 0:00:04]} 34. Rd2 {[%clk 0:00:31]}  f5 {[%clk 0:00:04]} 35. Nf6+ {[%clk 0:00:26]}  Kh8 {[%clk 0:00:05]} 36. Qh5 {[%clk 0:00:27]}  gxf6 {[%clk 0:00:04]} 37. Bxf6+ {[%clk 0:00:27]}  Bg7 {[%clk 0:00:05]} 38. Bxg7+ {[%clk 0:00:27]}  Kxg7 {[%clk 0:00:06]} 39. Rd7+ {[%clk 0:00:27]}  Kf6 {[%clk 0:00:06]} 40. f4 {[%clk 0:00:27]} 1-0


[Site "https://www.chess.com"]

[Event "Titled Tuesday Blitz June 6 Early 2023"]
[White "Kashlinskaya, Alina"]
[Black "Arat, Ufuk Sezen"]
[WhiteFideId "4198026"]
[BlackFideId "6309089"]
[WhiteElo "2383"]
[BlackElo "2289"]
[Result "0-1"]
[Round "11"]
[TimeControl "180+2"]
[Date "2023.06.06"]
[WhiteClock "0:00:01"]
[BlackClock "0:00:08"]
[Board "51"]

1. Nf3 {[%clk 0:03:00]}  d5 {[%clk 0:02:59]} 2. g3 {[%clk 0:03:01]}  c6 {[%clk 0:03:00]} 3. Bg2 {[%clk 0:03:01]}  Nf6 {[%clk 0:02:59]} 4. O-O {[%clk 0:03:02]}  g6 {[%clk 0:03:00]} 5. d4 {[%clk 0:02:58]}  Bg7 {[%clk 0:03:00]} 6. c4 {[%clk 0:02:58]}  O-O {[%clk 0:03:01]} 7. cxd5 {[%clk 0:02:53]}  cxd5 {[%clk 0:03:00]} 8. Ne5 {[%clk 0:02:53]}  Nc6 {[%clk 0:02:59]} 9. Nxc6 {[%clk 0:02:52]}  bxc6 {[%clk 0:03:00]} 10. Nd2 {[%clk 0:02:50]}  Bf5 {[%clk 0:02:59]} 11. Nb3 {[%clk 0:02:50]}  Nd7 {[%clk 0:02:55]} 12. Bf4 {[%clk 0:02:43]}  e5 {[%clk 0:02:53]} 13. dxe5 {[%clk 0:02:43]}  Nxe5 {[%clk 0:02:53]} 14. Nd4 {[%clk 0:02:43]}  Bd7 {[%clk 0:02:49]} 15. Rc1 {[%clk 0:02:42]}  Rc8 {[%clk 0:02:45]} 16. Nb3 {[%clk 0:02:12]}  Nc4 {[%clk 0:02:39]} 17. Nc5 {[%clk 0:02:11]}  Nxb2 {[%clk 0:02:35]} 18. Qb3 {[%clk 0:02:10]}  Nc4 {[%clk 0:02:25]} 19. Rfd1 {[%clk 0:02:09]}  Bg4 {[%clk 0:02:09]} 20. Qc2 {[%clk 0:01:32]}  Qe7 {[%clk 0:01:55]} 21. Nb3 {[%clk 0:01:23]}  Qxe2 {[%clk 0:01:46]} 22. Qxe2 {[%clk 0:01:20]}  Bxe2 {[%clk 0:01:47]} 23. Re1 {[%clk 0:01:21]}  Bg4 {[%clk 0:01:31]} 24. h3 {[%clk 0:01:20]}  Be6 {[%clk 0:01:26]} 25. Nc5 {[%clk 0:01:20]}  Rfe8 {[%clk 0:01:25]} 26. Nb7 {[%clk 0:01:11]}  h6 {[%clk 0:01:06]} 27. g4 {[%clk 0:01:11]}  g5 {[%clk 0:01:04]} 28. Bg3 {[%clk 0:01:10]}  Bd4 {[%clk 0:01:04]} 29. Bf1 {[%clk 0:01:09]}  Nd2 {[%clk 0:01:01]} 30. Bg2 {[%clk 0:01:03]}  Nc4 {[%clk 0:00:55]} 31. Bf1 {[%clk 0:01:03]}  Re7 {[%clk 0:00:50]} 32. Nd6 {[%clk 0:00:55]}  Nxd6 {[%clk 0:00:48]} 33. Bxd6 {[%clk 0:00:55]}  Rd7 {[%clk 0:00:48]} 34. Ba6 {[%clk 0:00:55]}  Rcd8 {[%clk 0:00:41]} 35. Bg3 {[%clk 0:00:40]}  c5 {[%clk 0:00:41]} 36. Red1 {[%clk 0:00:40]}  Re7 {[%clk 0:00:30]} 37. Kg2 {[%clk 0:00:35]}  f5 {[%clk 0:00:29]} 38. gxf5 {[%clk 0:00:32]}  Bxf5 {[%clk 0:00:29]} 39. h4 {[%clk 0:00:33]}  g4 {[%clk 0:00:28]} 40. h5 {[%clk 0:00:33]}  Be4+ {[%clk 0:00:28]} 41. Kg1 {[%clk 0:00:32]}  Rf7 {[%clk 0:00:26]} 42. Be2 {[%clk 0:00:20]}  Rdf8 {[%clk 0:00:25]} 43. Rxd4 {[%clk 0:00:17]}  cxd4 {[%clk 0:00:25]} 44. Bxg4 {[%clk 0:00:18]}  Rg7 {[%clk 0:00:18]} 45. Be6+ {[%clk 0:00:15]}  Kh7 {[%clk 0:00:19]} 46. Kh2 {[%clk 0:00:12]}  d3 {[%clk 0:00:20]} 47. Rd1 {[%clk 0:00:10]}  Re8 {[%clk 0:00:18]} 48. Bh3 {[%clk 0:00:09]}  Rb7 {[%clk 0:00:17]} 49. Bf1 {[%clk 0:00:08]}  Rb2 {[%clk 0:00:12]} 50. Bxd3 {[%clk 0:00:09]}  Bxd3 {[%clk 0:00:12]} 51. Rxd3 {[%clk 0:00:10]}  Rd8 {[%clk 0:00:11]} 52. a4 {[%clk 0:00:09]}  d4 {[%clk 0:00:12]} 53. Be5 {[%clk 0:00:09]}  Rxf2+ {[%clk 0:00:11]} 54. Kh3 {[%clk 0:00:09]}  Ra2 {[%clk 0:00:11]} 55. Rg3 {[%clk 0:00:09]}  Rd7 {[%clk 0:00:10]} 56. Rf3 {[%clk 0:00:04]}  Kg8 {[%clk 0:00:08]} 57. Rg3+ {[%clk 0:00:04]}  Kf7 {[%clk 0:00:09]} 58. Bf4 {[%clk 0:00:02]}  d3 {[%clk 0:00:08]} 59. Bxh6 {[%clk 0:00:01]}  d2 {[%clk 0:00:08]} 0-1


[Site "https://www.chess.com"]